[Event "POL-chT 1st League 2020"]
[Site "Ustron"]
[Date "2020.09.12"]
[Round "8.16"]
[White "Flis, Jacek"]
[Black "Kokoszczynski, Jan"]
[Result "1/2-1/2"]
[ECO "A07"]
[WhiteElo "2214"]
[BlackElo "2231"]
[Annotator "NA"]
[PlyCount "76"]
[EventDate "2020.09.05"]
[EventType "team-tourn"]
[EventCountry "POL"]
[SourceTitle "playchess.com"]
[Source "ChessBase"]
[SourceQuality "1"]
[WhiteTeam "SEMPAI UKS HETMAN Cz."]
[BlackTeam "KS LAURA Chylice"]
[TimeControl "40/5400+30:1800+30"]

1. g3 {[%emt 0:00:00]} d5 {[%emt 0:00:00]} 2. Bg2 {[%emt 0:00:00]} c6 {[%emt 0:00:31]} 3. Nf3 {[%emt 0:00:41]} Nf6 {[%emt 0:01:15]} 4. O-O Bg4 {[%emt 0:00:28]} 5. d3 {[%emt 0:01:38]} Nbd7 {[%emt 0:00:08]} 6. Nbd2 {[%emt 0:01:56]} e5 {[%emt 0:02:26]} 7. e4 {[%emt 0:02:59]} dxe4 {[%emt 0:06:05]} 8. dxe4 {[%emt 0:03:03]} Bc5 {[%emt 0:00:34]} 9. Qe2 {[%emt 0:02:59]} O-O {[%emt 0:00:33] A07: Réti Opening: New York and Capablanca Systems.} 10. h3 {[%emt 0:04:28]} Bh5 {[%emt 0:00:46]} 11. Kh2 {[%emt 0:06:15]} Re8 {[%emt 0:01:17] [#]} 12. Nb3 $146 {[%emt 0:09:19]} ({Predecessor:} 12. c3 a5 13. b3 b5 14. a3 Qb6 15. g4 Bg6 16. Nh4 Nf8 17. Nf5 Ne6 18. Nf3 {½-½ (41) Koskinen,V (1967)-Jantti,P (2119) Jyvaskyla 2008}) 12... Bf8 {[%emt 0:03:51]} 13. Rd1 {[%emt 0:05:07]} Qc7 {[%emt 0:00:35]} 14. g4 {[%emt 0:00:43]} Bg6 {[%emt 0:00:40]} 15. Nh4 {[%emt 0:01:03]} Nc5 {[%emt 0:07:56]} 16. Nxg6 {[%emt 0:22:38]} hxg6 {[%emt 0:01:08]} 17. Nxc5 {[%emt 0:10:57]} Bxc5 {[%emt 0:00:13]} 18. Be3 {[%emt 0:00:47]} Qb6 {[%emt 0:02:50]} 19. Bxc5 {[%emt 0:01:17]} Qxc5 {[%emt 0:00:04]} 20. Rd3 {[%emt 0:02:56]} Rad8 {[%emt 0:00:08]} 21. Rad1 {[%emt 0:00:37]} Rxd3 {[%emt 0:01:39]} 22. Rxd3 {[%emt 0:00:18]} Qb6 {[%emt 0:00:10]} 23. c3 {[%emt 0:04:20]} Rd8 {[%emt 0:01:46]} 24. Rd2 {[%emt 0:01:05]} Nh7 {[%emt 0:03:34]} 25. Qd1 {[%emt 0:07:49]} Rxd2 {[%emt 0:09:12]} 26. Qxd2 {[%emt 0:00:06]} Nf8 {[%emt 0:00:01]} 27. Bf1 {[%emt 0:01:36]} Qc5 {[%emt 0:00:29]} 28. b4 {[%emt 0:00:35]} Qe7 {[%emt 0:00:04]} 29. Bc4 {[%emt 0:02:23]} g5 {[%emt 0:00:06]} 30. Qe3 {[%emt 0:01:06]} b6 {[%emt 0:03:05]} 31. Qf3 $1 {[%emt 0:01:30]} g6 {[%emt 0:07:29]} 32. Kg2 {[%emt 0:01:01]} Nd7 {[%emt 0:00:43]} 33. Qe3 {[%emt 0:01:23]} Kg7 {[%emt 0:01:01]} 34. Bb3 {[%emt 0:00:48]} Qf6 {[%emt 0:04:23]} 35. Qd2 {[%emt 0:01:46]} Qe7 $11 {[%emt 0:04:04]} 36. Qe3 {[%emt 0:00:15]} a6 {[%emt 0:00:12]} 37. Qd3 {[%emt 0:00:24]} b5 {[%emt 0:03:49]} 38. c4 {[%emt 0:00:50]} Nf8 {[%emt 0:02:09]} 1/2-1/2

[Event "POL-chT 1st League 2020"]
[Site "Ustron"]
[Date "2020.09.12"]
[Round "8.17"]
[White "Praczukowski, Stanislaw"]
[Black "Kaliszuk, Kamil"]
[Result "1-0"]
[ECO "B12"]
[WhiteElo "2173"]
[BlackElo "1962"]
[Annotator "ChessBase"]
[PlyCount "79"]
[EventDate "2020.09.05"]
[EventType "team-tourn"]
[EventCountry "POL"]
[SourceTitle "playchess.com"]
[Source "ChessBase"]
[SourceQuality "1"]
[WhiteTeam "KS LAURA Chylice"]
[BlackTeam "SEMPAI UKS HETMAN Cz."]
[BlackTeamCountry "POL"]
[TimeControl "40/5400+30:1800+30"]

1. e4 {[%emt 0:00:00]} c6 {[%emt 0:00:00]} 2. d4 {[%emt 0:00:00]} d5 {[%emt 0:00:00]} 3. e5 {[%emt 0:00:10]} Bf5 {[%emt 0:00:00]} 4. Nd2 {[%emt 0:00:22]} e6 {[%emt 0:01:57]} 5. Nb3 {[%emt 0:00:08]} Nd7 {[%emt 0:01:48]} 6. Nf3 {[%emt 0:00:18]} Ne7 {[%emt 0:01:57]} 7. Be2 {[%emt 0:00:40]} Ng6 {[%emt 0:02:14]} 8. O-O {[%emt 0:01:11]} f6 {[%emt 0:06:00]} 9. Ne1 {[%emt 0:10:07]} h5 {[%emt 0:28:34]} 10. f4 {[%emt 0:08:48]} h4 {[%emt 0:03:57]} 11. Bg4 {[%emt 0:03:28]} Ne7 {[%emt 0:03:08]} 12. Bxf5 {[%emt 0:15:33]} Nxf5 {[%emt 0:00:44]} 13. Qe2 {[%emt 0:00:37]} Qe7 {[%emt 0:06:28]} 14. Bd2 {[%emt 0:02:50]} O-O-O {[%emt 0:16:19]} 15. Nd3 {[%emt 0:02:02]} Qf7 {[%emt 0:00:36]} 16. Bb4 {[%emt 0:06:05]} Bxb4 {[%emt 0:01:42]} 17. Nxb4 {[%emt 0:00:02]} Nb6 {[%emt 0:00:14]} 18. c3 {[%emt 0:02:09]} Nc4 {[%emt 0:04:57]} 19. Nc5 {[%emt 0:03:55]} Rh6 {[%emt 0:01:54]} 20. b3 {[%emt 0:02:28]} Nb6 {[%emt 0:02:30]} 21. a4 {[%emt 0:01:34]} Na8 {[%emt 0:07:48]} 22. a5 {[%emt 0:05:33]} Nc7 {[%emt 0:00:12]} 23. a6 {[%emt 0:02:09]} b6 {[%emt 0:00:16]} 24. Nb7 {[%emt 0:00:56]} Qe8 {[%emt 0:00:17]} 25. Nxd8 {[%emt 0:01:15]} Kxd8 {[%emt 0:00:03]} 26. Nc2 {[%emt 0:04:28]} Qh8 {[%emt 0:02:32]} 27. Qf3 {[%emt 0:01:50]} Nb5 {[%emt 0:00:19]} 28. Ne3 {[%emt 0:01:36]} Qh7 {[%emt 0:00:57]} 29. Nxf5 {[%emt 0:02:17]} Qxf5 {[%emt 0:00:02]} 30. Rac1 {[%emt 0:01:20]} Kd7 {[%emt 0:01:11]} 31. Qe3 {[%emt 0:01:23]} Nc7 {[%emt 0:00:12]} 32. c4 {[%emt 0:01:25]} Rh8 {[%emt 0:01:47]} 33. Qc3 {[%emt 0:03:05]} Rc8 {[%emt 0:01:03]} 34. Qb4 {[%emt 0:01:24]} Ne8 {[%emt 0:00:51]} 35. cxd5 {[%emt 0:00:38]} exd5 {[%emt 0:00:02]} 36. Qf8 {[%emt 0:02:01]} h3 {[%emt 0:00:27]} 37. Qf7+ {[%emt 0:01:23]} Kd8 {[%emt 0:00:01]} 38. Qxa7 {[%emt 0:02:17]} Qe4 {[%emt 0:00:09]} 39. Qxb6+ {[%emt 0:00:11]} Nc7 {[%emt 0:00:08]} 40. Rf2 {[%emt 0:00:00]} 1-0

[Event "POL-chT 1st League 2020"]
[Site "Ustron"]
[Date "2020.09.12"]
[Round "8.18"]
[White "Lach, Aleksandra"]
[Black "Moscicka, Pola"]
[Result "1-0"]
[ECO "A05"]
[WhiteElo "2188"]
[BlackElo "1880"]
[Annotator "ChessBase"]
[PlyCount "99"]
[EventDate "2020.09.05"]
[EventType "team-tourn"]
[EventCountry "POL"]
[SourceTitle "playchess.com"]
[Source "ChessBase"]
[SourceQuality "1"]
[WhiteTeam "SEMPAI UKS HETMAN Cz."]
[BlackTeam "KS LAURA Chylice"]
[TimeControl "40/5400+30:1800+30"]

1. Nf3 {[%emt 0:00:00]} Nf6 {[%emt 0:00:00]} 2. c4 {[%emt 0:00:19]} c5 {[%emt 0:00:07]} 3. g3 {[%emt 0:01:27]} Nc6 {[%emt 0:00:21]} 4. Bg2 {[%emt 0:01:43]} g6 {[%emt 0:00:59]} 5. b3 {[%emt 0:11:06]} Bg7 {[%emt 0:02:28]} 6. Bb2 {[%emt 0:00:15]} O-O {[%emt 0:01:29]} 7. O-O {[%emt 0:02:02]} d6 {[%emt 0:08:44]} 8. Na3 {[%emt 0:14:11]} e5 {[%emt 0:03:33]} 9. d3 {[%emt 0:01:32]} h6 {[%emt 0:03:16]} 10. Nd2 {[%emt 0:06:56]} Be6 {[%emt 0:02:50]} 11. Qc1 {[%emt 0:09:59]} Qd7 {[%emt 0:06:08]} 12. Ne4 {[%emt 0:21:24]} Ne8 {[%emt 0:08:59]} 13. f4 {[%emt 0:02:22]} f5 {[%emt 0:03:28]} 14. Nf2 {[%emt 0:01:10]} Rc8 {[%emt 0:07:56]} 15. Nb5 {[%emt 0:10:14]} Nf6 {[%emt 0:07:48]} 16. Bxc6 {[%emt 0:04:12]} bxc6 {[%emt 0:00:47]} 17. Nxd6 {[%emt 0:00:06]} exf4 {[%emt 0:09:24]} 18. Nxc8 {[%emt 0:00:02]} fxg3 {[%emt 0:00:09]} 19. hxg3 {[%emt 0:00:05]} Qxc8 {[%emt 0:00:28]} 20. Kg2 {[%emt 0:05:06]} g5 {[%emt 0:01:48]} 21. Rh1 {[%emt 0:01:26]} Qd7 {[%emt 0:08:07]} 22. Bxf6 {[%emt 0:01:21]} Rxf6 {[%emt 0:00:25]} 23. Qd2 {[%emt 0:02:41]} Rg6 {[%emt 0:05:18]} 24. Raf1 {[%emt 0:00:21]} Be5 {[%emt 0:00:20]} 25. Qe3 {[%emt 0:01:40]} Qd6 {[%emt 0:00:37]} 26. b4 {[%emt 0:00:15]} cxb4 {[%emt 0:02:39]} 27. Qxa7 {[%emt 0:00:09]} Bxg3 {[%emt 0:01:26]} 28. Nd1 {[%emt 0:00:56]} Bh4 {[%emt 0:02:03]} 29. Qe3 {[%emt 0:00:24]} c5 {[%emt 0:00:51]} 30. Qf3 {[%emt 0:00:18]} Kg7 {[%emt 0:02:27]} 31. Ne3 {[%emt 0:00:48]} Bd7 {[%emt 0:02:50]} 32. Nd5 {[%emt 0:00:51]} f4 {[%emt 0:04:02]} 33. e3 {[%emt 0:00:14]} Bf5 {[%emt 0:01:40]} 34. e4 {[%emt 0:00:40]} Be6 {[%emt 0:00:31]} 35. Rxh4 gxh4+ 36. Kh2 Bxd5 {[%emt 0:03:18]} 37. cxd5 {[%emt 0:00:28]} Rf6 {[%emt 0:00:29]} 38. Re1 {[%emt 0:00:38]} Qe5 {[%emt 0:00:15]} 39. Rg1+ {[%emt 0:01:00]} Kf7 {[%emt 0:00:50]} 40. Qg4 {[%emt 0:00:00]} f3+ {[%emt 0:00:00]} 41. Kh3 {[%emt 0:03:58]} Ke7 {[%emt 0:02:33]} 42. Qc8 {[%emt 0:14:55]} Rf8 {[%emt 0:13:22]} 43. Qxc5+ {[%emt 0:04:29]} Ke8 {[%emt 0:03:15]} 44. Qc6+ {[%emt 0:02:37]} Kd8 {[%emt 0:00:44]} 45. Qa8+ {[%emt 0:01:58]} Ke7 {[%emt 0:00:06]} 46. Qb7+ {[%emt 0:00:29]} Ke8 {[%emt 0:00:26]} 47. Rg7 {[%emt 0:04:26]} Qxg7 {[%emt 0:01:05]} 48. Qxg7 {[%emt 0:00:05]} f2 {[%emt 0:00:23]} 49. Qxf8+ {[%emt 0:00:07]} Kxf8 {[%emt 0:00:04]} 50. Kg2 {[%emt 0:00:01]} 1-0

[Event "POL-chT 1st League 2020"]
[Site "Ustron"]
[Date "2020.09.12"]
[Round "8.27"]
[White "Budrewicz, Krzysztof"]
[Black "Bronowicki, Mateusz"]
[Result "1-0"]
[ECO "A44"]
[WhiteElo "2227"]
[BlackElo "2243"]
[Annotator "ChessBase"]
[PlyCount "64"]
[EventDate "2020.09.05"]
[EventType "team-tourn"]
[EventCountry "POL"]
[SourceTitle "playchess.com"]
[Source "ChessBase"]
[SourceQuality "1"]
[WhiteTeam "Gostmat Gostynin"]
[BlackTeam "Bialy Krol Wisznia Mala"]
[TimeControl "40/5400+30:1800+30"]

1. d4 {[%emt 0:01:02]} c5 {[%emt 0:00:00]} 2. d5 {[%emt 0:00:17]} e5 {[%emt 0:00:18]} 3. e4 {[%emt 0:01:08]} d6 {[%emt 0:00:29]} 4. Nc3 {[%emt 0:00:26]} a6 {[%emt 0:01:36]} 5. a4 {[%emt 0:01:07]} Be7 {[%emt 0:00:21]} 6. Be2 {[%emt 0:04:28]} Bg5 {[%emt 0:02:42]} 7. Nf3 {[%emt 0:00:28]} Bxc1 {[%emt 0:00:42]} 8. Qxc1 {[%emt 0:00:25]} Bg4 {[%emt 0:26:29]} 9. Nd2 {[%emt 0:01:34]} Bxe2 {[%emt 0:01:15]} 10. Nxe2 {[%emt 0:00:09]} Nh6 {[%emt 0:18:14]} 11. O-O {[%emt 0:10:45]} O-O {[%emt 0:00:55]} 12. Nc4 {[%emt 0:02:40]} f5 {[%emt 0:05:10]} 13. f4 {[%emt 0:00:38]} fxe4 {[%emt 0:01:48]} 14. fxe5 {[%emt 0:00:21]} Rxf1+ {[%emt 0:00:08]} 15. Qxf1 {[%emt 0:00:56]} Nd7 {[%emt 0:02:49]} 16. Nc3 {[%emt 0:08:55]} Qf6 17. a5 Qh4 {[%emt 0:04:00]} 18. Qe1 {[%emt 0:04:12]} Qxe1+ {[%emt 0:07:04]} 19. Rxe1 {[%emt 0:00:12]} Nf6 {[%emt 0:00:17]} 20. Nb6 {[%emt 0:04:42]} Re8 {[%emt 0:01:48]} 21. Nca4 {[%emt 0:02:45]} Nf5 {[%emt 0:02:56]} 22. Nxc5 {[%emt 0:00:00]} h6 {[%emt 0:04:37]} 23. b3 {[%emt 0:00:38]} Re7 {[%emt 0:01:22]} 24. Nca4 {[%emt 0:05:50]} Nd4 {[%emt 0:01:33]} 25. b4 {[%emt 0:04:32]} e3 {[%emt 0:11:08]} 26. exd6 {[%emt 0:10:55]} Rf7 {[%emt 0:04:32]} 27. Nc3 {[%emt 0:15:19]} Nxc2 {[%emt 0:00:38]} 28. Re2 {[%emt 0:00:06]} Nxb4 {[%emt 0:00:00]} 29. d7 {[%emt 0:17:47]} h5 {[%emt 0:00:00]} 30. g4 {[%emt 0:00:00]} Kh7 {[%emt 0:01:36]} 31. g5 {[%emt 0:00:00]} Kh8 {[%emt 0:00:32]} 32. g6 {[%emt 0:00:00]} Rf8 {[%emt 0:00:00]} 1-0

[Event "POL-chT 1st League 2020"]
[Site "Ustron"]
[Date "2020.09.12"]
[Round "8.30"]
[White "Przezdziecka, Ewa"]
[Black "Dwilewicz, Katarzyna"]
[Result "1/2-1/2"]
[ECO "A46"]
[WhiteElo "2166"]
[BlackElo "2134"]
[Annotator "ChessBase"]
[PlyCount "137"]
[EventDate "2020.09.05"]
[EventType "team-tourn"]
[EventCountry "POL"]
[SourceTitle "playchess.com"]
[Source "ChessBase"]
[SourceQuality "1"]
[WhiteTeam "Bialy Krol Wisznia Mala"]
[BlackTeam "Gostmat Gostynin"]
[TimeControl "40/5400+30:1800+30"]

1. d4 {[%emt 0:00:00]} Nf6 {[%emt 0:00:00]} 2. Nf3 {[%emt 0:00:11]} e6 {[%emt 0:00:34]} 3. c4 {[%emt 0:00:33]} d5 {[%emt 0:00:39]} 4. e3 {[%emt 0:00:22]} Be7 {[%emt 0:01:53]} 5. b3 {[%emt 0:00:49]} O-O {[%emt 0:00:58]} 6. Bb2 {[%emt 0:00:30]} c5 {[%emt 0:02:23]} 7. Nbd2 {[%emt 0:05:23]} cxd4 {[%emt 0:02:33]} 8. Nxd4 {[%emt 0:12:05]} dxc4 {[%emt 0:04:58]} 9. Bxc4 {[%emt 0:04:37]} a6 {[%emt 0:00:10]} 10. O-O {[%emt 0:03:06]} b5 {[%emt 0:01:55]} 11. Be2 {[%emt 0:05:16]} Bb7 {[%emt 0:03:36]} 12. Bf3 {[%emt 0:06:25]} Ra7 {[%emt 0:08:07]} 13. Bxb7 {[%emt 0:14:20]} Rxb7 {[%emt 0:00:05]} 14. N2f3 {[%emt 0:00:19]} Qb6 {[%emt 0:04:24]} 15. Qe2 {[%emt 0:02:03]} Rc7 {[%emt 0:04:46]} 16. Rac1 {[%emt 0:07:23]} Rfc8 {[%emt 0:03:52]} 17. h3 {[%emt 0:07:10]} h6 {[%emt 0:02:06]} 18. Rxc7 {[%emt 0:04:11]} Rxc7 {[%emt 0:00:44]} 19. Rc1 {[%emt 0:03:49]} Nbd7 {[%emt 0:02:58]} 20. Rxc7 {[%emt 0:05:06]} Qxc7 {[%emt 0:00:20]} 21. Qc2 {[%emt 0:01:17]} Qxc2 {[%emt 0:08:40]} 22. Nxc2 {[%emt 0:00:02]} Nd5 {[%emt 0:01:00]} 23. Kf1 {[%emt 0:11:44]} f6 {[%emt 0:17:02]} 24. Nfd4 {[%emt 0:03:24]} Kf7 {[%emt 0:00:12]} 25. Ke2 {[%emt 0:00:31]} Bd8 {[%emt 0:01:52]} 26. Nc6 {[%emt 0:00:42]} Bb6 {[%emt 0:01:04]} 27. N6b4 {[%emt 0:00:34]} Nxb4 {[%emt 0:03:59]} 28. Nxb4 {[%emt 0:00:02]} Nb8 {[%emt 0:02:30]} 29. a3 {[%emt 0:01:32]} Ke7 {[%emt 0:01:31]} 30. Nc2 {[%emt 0:00:31]} Nc6 {[%emt 0:01:40]} 31. b4 {[%emt 0:00:32]} Kd6 {[%emt 0:02:22]} 32. f4 {[%emt 0:00:27]} e5 {[%emt 0:03:43]} 33. Kd3 {[%emt 0:00:31]} exf4 {[%emt 0:02:12]} 34. exf4 {[%emt 0:00:03]} Kd5 {[%emt 0:00:23]} 35. g4 {[%emt 0:00:46]} Bf2 {[%emt 0:01:30]} 36. Bc1 {[%emt 0:00:56]} g6 {[%emt 0:07:59]} 37. Ne3+ {[%emt 0:00:31]} Bxe3 {[%emt 0:00:29]} 38. Bxe3 {[%emt 0:00:02]} f5 {[%emt 0:00:25]} 39. Bf2 {[%emt 0:01:05]} Nd8 {[%emt 0:01:38]} 40. gxf5 {[%emt 0:00:00]} gxf5 {[%emt 0:00:00]} 41. Ba7 {[%emt 0:12:47]} Ne6 {[%emt 0:05:34]} 42. Bb8 {[%emt 0:02:04]} Nd4 {[%emt 0:02:23]} 43. Ba7 {[%emt 0:01:54]} Nc6 {[%emt 0:01:44]} 44. Bb6 {[%emt 0:03:28]} Nb8 {[%emt 0:01:49]} 45. Ba7 {[%emt 0:01:26]} Nd7 {[%emt 0:00:50]} 46. Bd4 {[%emt 0:01:27]} h5 {[%emt 0:02:07]} 47. Ba7 {[%emt 0:09:23]} Nf6 {[%emt 0:01:32]} 48. Bd4 {[%emt 0:00:50]} Ne4 {[%emt 0:00:33]} 49. Ba7 {[%emt 0:01:13]} Nd6 {[%emt 0:00:48]} 50. Bb8 {[%emt 0:00:34]} Nc4 {[%emt 0:00:18]} 51. Ba7 {[%emt 0:00:49]} Nxa3 {[%emt 0:00:20]} 52. Bb6 {[%emt 0:00:27]} Nc4 {[%emt 0:00:33]} 53. Bc7 {[%emt 0:00:31]} Nd6 {[%emt 0:07:33]} 54. Bb8 {[%emt 0:00:20]} Nc8 {[%emt 0:01:45]} 55. Be5 {[%emt 0:00:37]} Ne7 {[%emt 0:00:30]} 56. Bc3 {[%emt 0:00:25]} Nc6 {[%emt 0:01:10]} 57. Be1 {[%emt 0:00:19]} Nd4 {[%emt 0:00:42]} 58. Bf2 {[%emt 0:00:21]} Ne6 {[%emt 0:00:33]} 59. Be3 {[%emt 0:00:11]} Kc6 {[%emt 0:04:34]} 60. Bd2 {[%emt 0:01:13]} Kd5 {[%emt 0:00:14]} 61. Be3 {[%emt 0:00:02]} Nd8 {[%emt 0:01:10]} 62. Bd2 {[%emt 0:00:25]} Nc6 {[%emt 0:00:34]} 63. Be1 {[%emt 0:00:03]} Kd6 {[%emt 0:00:37]} 64. Bd2 {[%emt 0:00:17]} Kc7 {[%emt 0:01:28]} 65. Be1 {[%emt 0:00:36]} Kb7 {[%emt 0:01:23]} 66. Bd2 {[%emt 0:00:36]} Kc7 {[%emt 0:02:05]} 67. Be1 {[%emt 0:00:08]} Kd6 {[%emt 0:00:02]} 68. Bd2 {[%emt 0:00:08]} Kd5 {[%emt 0:00:10]} 69. Be1 {[%emt 0:01:33]} 1/2-1/2